[Event "*** Titled Tuesday 3|2 Blitz (Late)"]
[Site "Chess.com"]
[Date "2017.01.03"]
[Round "7"]
[White "Fh2411"]
[Black "amurdercastle"]
[Result "1-0"]
[WhiteElo "2388"]
[BlackElo "2341"]
[TimeControl "180+2"]
[EndTime "18:26:48 PST"]
[Termination "Fh2411 won by resignation"]

1. d4 {[%clk 0:03:01.9]} 1... d5 {[%clk 0:02:57.8]} 2. Nf3 {[%clk 0:02:59.6]}
2... Nf6 {[%clk 0:02:56.8]} 3. Bf4 {[%clk 0:03:00.1]} 3... c5 {[%clk 0:02:56.7]}
4. e3 {[%clk 0:03:00.7]} 4... Nc6 {[%clk 0:02:54.8]} 5. Nbd2 {[%clk 0:03:01.4]}
5... Qb6 {[%clk 0:02:52.2]} 6. dxc5 {[%clk 0:03:01.7]} 6... Qxc5 {[%clk
0:02:52.9]} 7. a3 {[%clk 0:02:55.7]} 7... Bf5 {[%clk 0:02:52.3]} 8. c4 {[%clk
0:02:52.1]} 8... dxc4 {[%clk 0:02:49.7]} 9. Bxc4 {[%clk 0:02:52.1]} 9... e6
{[%clk 0:02:49.6]} 10. O-O {[%clk 0:02:50.9]} 10... Be7 {[%clk 0:02:42.6]} 11.
Qb3 {[%clk 0:02:29.9]} 11... Qb6 {[%clk 0:02:16]} 12. Qxb6 {[%clk 0:02:27.8]}
12... axb6 {[%clk 0:02:17.9]} 13. Rac1 {[%clk 0:02:22.5]} 13... O-O {[%clk
0:02:18.3]} 14. h3 {[%clk 0:02:21.9]} 14... Rfd8 {[%clk 0:02:18.7]} 15. Bc7
{[%clk 0:02:18]} 15... Rd7 {[%clk 0:02:01.7]} 16. Bxb6 {[%clk 0:02:16.4]} 16...
e5 {[%clk 0:01:55.5]} 17. Nb3 {[%clk 0:02:09]} 17... Be4 {[%clk 0:01:30.8]} 18.
Rfd1 {[%clk 0:01:31.8]} 18... Rxd1+ {[%clk 0:01:12]} 19. Rxd1 {[%clk 0:01:33.7]}
19... Bd8 {[%clk 0:00:59.6]} 20. Bxd8 {[%clk 0:01:31.2]} 20... Nxd8 {[%clk
0:00:59.4]} 21. Nxe5 {[%clk 0:01:30.6]} 21... Rc8 {[%clk 0:01:00.8]} 22. Rd4
{[%clk 0:01:18.8]} 22... Bg6 {[%clk 0:00:58.4]} 23. Nd2 {[%clk 0:01:10.8]} 23...
Kf8 {[%clk 0:00:50.3]} 24. a4 {[%clk 0:01:05.7]} 24... Nc6 {[%clk 0:00:40.6]}
25. Nxc6 {[%clk 0:01:05.3]} 25... Rxc6 {[%clk 0:00:41]} 26. a5 {[%clk
0:00:59.4]} 26... Ke7 {[%clk 0:00:41.6]} 27. b4 {[%clk 0:00:59.6]} 27... Bf5
{[%clk 0:00:41.9]} 28. b5 {[%clk 0:00:54]} 28... Rc8 {[%clk 0:00:42.3]} 29. a6
{[%clk 0:00:48.2]} 29... bxa6 {[%clk 0:00:44.2]} 30. bxa6 {[%clk 0:00:49.9]}
30... Ra8 {[%clk 0:00:45.6]} 31. g4 {[%clk 0:00:44.3]} 31... Bc8 {[%clk
0:00:45.6]} 32. g5 {[%clk 0:00:36.7]} 32... Nd7 {[%clk 0:00:31.8]} 33. Re4+
{[%clk 0:00:37.4]} 33... Kf8 {[%clk 0:00:30.8]} 34. Bb5 {[%clk 0:00:33.5]} 34...
h6 {[%clk 0:00:19.3]} 35. h4 {[%clk 0:00:32.1]} 35... hxg5 {[%clk 0:00:19.7]}
36. hxg5 {[%clk 0:00:34]} 36... g6 {[%clk 0:00:21]} 37. Nc4 {[%clk 0:00:24.5]}
37... Kg7 {[%clk 0:00:16.8]} 38. Nd6 {[%clk 0:00:14.7]} 38... Bxa6 {[%clk
0:00:16]} 39. Bxd7 {[%clk 0:00:14.6]} 39... Rd8 {[%clk 0:00:15.5]} 40. Ne8+
{[%clk 0:00:13.8]} 40... Kf8 {[%clk 0:00:15]} 41. Ba4 {[%clk 0:00:15.1]} 41...
Bd3 {[%clk 0:00:15.5]} 42. Rd4 {[%clk 0:00:11.4]} 42... Ra8 {[%clk 0:00:16.3]}
43. Nf6 {[%clk 0:00:11.8]} 43... Bf5 {[%clk 0:00:15.4]} 44. Kg2 {[%clk
0:00:12.4]} 44... Be6 {[%clk 0:00:16]} 45. Bc6 {[%clk 0:00:13.6]} 45... Ra5
{[%clk 0:00:16.9]} 46. f4 {[%clk 0:00:14.5]} 46... Ra2+ {[%clk 0:00:17.1]} 47.
Kg3 {[%clk 0:00:16.1]} 47... Ra3 {[%clk 0:00:18.2]} 48. Kf3 {[%clk 0:00:16]}
48... Ra1 {[%clk 0:00:17.2]} 49. Rd8+ {[%clk 0:00:16.6]} 49... Ke7 {[%clk
0:00:16.7]} 50. Re8+ {[%clk 0:00:17.7]} 50... Kd6 {[%clk 0:00:18]} 51. Be4
{[%clk 0:00:16.8]} 51... Rf1+ {[%clk 0:00:18.4]} 52. Ke2 {[%clk 0:00:17.1]}
52... Ra1 {[%clk 0:00:18.7]} 53. Rd8+ {[%clk 0:00:18.2]} 53... Ke7 {[%clk
0:00:19.3]} 54. Re8+ {[%clk 0:00:19.7]} 54... Kd6 {[%clk 0:00:20.7]} 55. Rb8
{[%clk 0:00:21.2]} 55... Ra2+ {[%clk 0:00:21.7]} 56. Kf3 {[%clk 0:00:22.5]}
56... Bh3 {[%clk 0:00:21.1]} 57. Kg3 {[%clk 0:00:21.7]} 57... Be6 {[%clk
0:00:20]} 58. Rb6+ {[%clk 0:00:22.4]} 58... Ke7 {[%clk 0:00:19.3]} 59. Bd5
{[%clk 0:00:22.9]} 59... Ra3 {[%clk 0:00:18.7]} 60. Kf3 {[%clk 0:00:24]} 60...
Bc8 {[%clk 0:00:17]} 61. Rc6 {[%clk 0:00:22.9]} 61... Kd8 {[%clk 0:00:13.3]} 62.
Rc5 {[%clk 0:00:20.6]} 62... Ra7 {[%clk 0:00:12]} 63. Rc3 {[%clk 0:00:14.1]}
63... Bf5 {[%clk 0:00:10.8]} 64. e4 {[%clk 0:00:14.4]} 64... Bc8 {[%clk
0:00:12.3]} 65. Rd3 {[%clk 0:00:11.5]} 65... Ke7 {[%clk 0:00:12.9]} 66. Rc3
{[%clk 0:00:12.7]} 66... Kd8 {[%clk 0:00:14]} 67. Kg3 {[%clk 0:00:13.1]} 67...
Re7 {[%clk 0:00:10.5]} 68. Ng4 {[%clk 0:00:14.4]} 68... Ra7 {[%clk 0:00:11.3]}
69. Ne5 {[%clk 0:00:15.3]} 69... Be6 {[%clk 0:00:09.1]} 70. Bxe6 {[%clk
0:00:14]} 70... fxe6 {[%clk 0:00:11]} 71. Nc6+ {[%clk 0:00:15.5]} 1-0

[Event "*** Titled Tuesday 3|2 Blitz (Late)"]
[Site "Chess.com"]
[Date "2017.01.03"]
[Round "7"]
[White "aspired"]
[Black "macko06"]
[Result "0-1"]
[WhiteElo "2468"]
[BlackElo "2312"]
[TimeControl "180+2"]
[EndTime "18:27:03 PST"]
[Termination "macko06 won on time"]

1. e4 {[%clk 0:03:02]} 1... e6 {[%clk 0:03:00.4]} 2. d4 {[%clk 0:03:01.7]} 2...
d5 {[%clk 0:03:02.3]} 3. Bd3 {[%clk 0:03:03.3]} 3... dxe4 {[%clk 0:03:01.9]} 4.
Bxe4 {[%clk 0:03:05.2]} 4... Nf6 {[%clk 0:03:01.5]} 5. Bf3 {[%clk 0:03:06.8]}
5... c5 {[%clk 0:02:57.9]} 6. Ne2 {[%clk 0:03:08.1]} 6... Nc6 {[%clk 0:02:57.5]}
7. Be3 {[%clk 0:03:09.3]} 7... e5 {[%clk 0:02:57.5]} 8. Bxc6+ {[%clk 0:03:08.4]}
8... bxc6 {[%clk 0:02:58.3]} 9. dxe5 {[%clk 0:03:10.3]} 9... Qxd1+ {[%clk
0:02:59.4]} 10. Kxd1 {[%clk 0:03:12.2]} 10... Ng4 {[%clk 0:03:00.8]} 11. Nd2
{[%clk 0:02:55.7]} 11... Nxe5 {[%clk 0:02:58]} 12. h3 {[%clk 0:02:45.1]} 12...
Be7 {[%clk 0:02:56]} 13. Nc3 {[%clk 0:02:41.9]} 13... O-O {[%clk 0:02:52.6]} 14.
a4 {[%clk 0:02:35]} 14... Be6 {[%clk 0:02:44.4]} 15. a5 {[%clk 0:02:35.1]} 15...
Rfe8 {[%clk 0:02:39.8]} 16. Kc1 {[%clk 0:02:29.9]} 16... Bd5 {[%clk 0:02:36.7]}
17. Rg1 {[%clk 0:02:20.8]} 17... Rab8 {[%clk 0:02:32]} 18. Ra4 {[%clk
0:02:10.3]} 18... f5 {[%clk 0:02:28.2]} 19. a6 {[%clk 0:01:56.8]} 19... Nd7
{[%clk 0:02:25.5]} 20. g4 {[%clk 0:01:36.8]} 20... Be6 {[%clk 0:02:24]} 21. gxf5
{[%clk 0:01:33.4]} 21... Bxf5 {[%clk 0:02:24.3]} 22. Nde4 {[%clk 0:01:29.6]}
22... Nb6 {[%clk 0:02:21.2]} 23. Ra2 {[%clk 0:01:24.2]} 23... Nd5 {[%clk
0:02:19.2]} 24. Nxd5 {[%clk 0:01:11]} 24... cxd5 {[%clk 0:02:19.8]} 25. Nxc5
{[%clk 0:01:12.5]} 25... Rec8 {[%clk 0:02:13.1]} 26. Ra5 {[%clk 0:01:08.6]}
26... Bf6 {[%clk 0:02:07.6]} 27. c3 {[%clk 0:00:57.1]} 27... Bxc3 {[%clk
0:01:58.3]} 28. bxc3 {[%clk 0:00:45.3]} 28... Rb1+ {[%clk 0:02:00.2]} 29. Kd2
{[%clk 0:00:46.5]} 29... Rxg1 {[%clk 0:02:02.1]} 30. Nb7 {[%clk 0:00:46.7]}
30... Rg6 {[%clk 0:01:54.4]} 31. Bxa7 {[%clk 0:00:41.3]} 31... Ra8 {[%clk
0:01:53.3]} 32. Bd4 {[%clk 0:00:31.7]} 32... Rgxa6 {[%clk 0:01:49.7]} 33. Rxd5
{[%clk 0:00:30.8]} 33... Bxh3 {[%clk 0:01:44.2]} 34. Rg5 {[%clk 0:00:23.5]}
34... g6 {[%clk 0:01:41.8]} 35. Nc5 {[%clk 0:00:23.2]} 35... Ra2+ {[%clk
0:01:36.6]} 36. Ke3 {[%clk 0:00:24.3]} 36... Re8+ {[%clk 0:01:34.2]} 37. Kf4
{[%clk 0:00:25.3]} 37... Rf8+ {[%clk 0:01:32]} 38. Kg3 {[%clk 0:00:26.1]} 38...
Bf5 {[%clk 0:01:29.9]} 39. Kh2 {[%clk 0:00:21.4]} 39... Re8 {[%clk 0:01:27.6]}
40. Rg1 {[%clk 0:00:21.1]} 40... Ree2 {[%clk 0:01:21.6]} 41. Kg3 {[%clk
0:00:21.5]} 41... h5 {[%clk 0:01:19.6]} 42. Rd1 {[%clk 0:00:21.8]} 42... g5
{[%clk 0:01:13.8]} 43. Be3 {[%clk 0:00:21.6]} 43... h4+ {[%clk 0:01:12.4]} 44.
Kf3 {[%clk 0:00:20.4]} 44... g4+ {[%clk 0:01:11.5]} 45. Kf4 {[%clk 0:00:21.6]}
45... Rxf2+ {[%clk 0:01:10.1]} 46. Bxf2 {[%clk 0:00:22.4]} 46... Rxf2+ {[%clk
0:01:11.7]} 47. Kg5 {[%clk 0:00:22.6]} 47... h3 {[%clk 0:01:08.3]} 48. Kh4
{[%clk 0:00:16.5]} 48... h2 {[%clk 0:01:07.5]} 49. Kg3 {[%clk 0:00:16.6]} 49...
Rf3+ {[%clk 0:01:03.9]} 50. Kxh2 {[%clk 0:00:17.1]} 50... Rxc3 {[%clk
0:01:05.5]} 51. Nd7 {[%clk 0:00:16.9]} 51... Kf7 {[%clk 0:01:02.7]} 52. Ne5+
{[%clk 0:00:08.8]} 52... Kf6 {[%clk 0:01:03.7]} 53. Re1 {[%clk 0:00:09.4]} 53...
Kg5 {[%clk 0:01:01.6]} 54. Kg2 {[%clk 0:00:06]} 54... Kf4 {[%clk 0:01:01.5]} 55.
Nxg4 {[%clk 0:00:06.4]} 55... Bxg4 {[%clk 0:01:01.8]} 56. Re8 {[%clk 0:00:07.1]}
56... Rc2+ {[%clk 0:01:02.3]} 57. Kf1 {[%clk 0:00:08.3]} 57... Bf3 {[%clk
0:01:00.3]} 58. Ke1 {[%clk 0:00:09.4]} 58... Be4 {[%clk 0:00:58.1]} 59. Kd1
{[%clk 0:00:10.3]} 59... Rh2 {[%clk 0:00:58.6]} 60. Kc1 {[%clk 0:00:08.9]} 60...
Ke3 {[%clk 0:00:59.9]} 61. Rd8 {[%clk 0:00:04.3]} 61... Rc2+ {[%clk 0:00:54.8]}
62. Kd1 {[%clk 0:00:05.1]} 62... Rb2 {[%clk 0:00:49.6]} 63. Rc8 {[%clk 0:00:06]}
63... Rb1+ {[%clk 0:00:45]} 64. Rc1 {[%clk 0:00:06.3]} 64... Rb2 {[%clk
0:00:46.6]} 65. Rc8 {[%clk 0:00:07]} 65... Rh2 {[%clk 0:00:32.8]} 66. Kc1 {[%clk
0:00:05.6]} 66... Rh1+ {[%clk 0:00:30.1]} 67. Kb2 {[%clk 0:00:06.8]} 67... Rb1+
{[%clk 0:00:30.4]} 68. Ka3 {[%clk 0:00:08.1]} 68... Kd4 {[%clk 0:00:30.7]} 69.
Rd8+ {[%clk 0:00:09.1]} 69... Bd5 {[%clk 0:00:30.5]} 70. Rd7 {[%clk 0:00:10.3]}
70... Kc5 {[%clk 0:00:29.7]} 71. Rd8 {[%clk 0:00:10.2]} 71... Bc4 {[%clk
0:00:29.2]} 72. Rc8+ {[%clk 0:00:11]} 72... Kd4 {[%clk 0:00:29.7]} 73. Rd8+
{[%clk 0:00:12.3]} 73... Kc3 {[%clk 0:00:30.9]} 0-1

[Event "*** Titled Tuesday 3|2 Blitz (Late)"]
[Site "Chess.com"]
[Date "2017.01.03"]
[Round "8"]
[White "severomorskij"]
[Black "rithwik2002"]
[Result "1-0"]
[WhiteElo "2594"]
[BlackElo "1767"]
[TimeControl "180+2"]
[EndTime "18:29:38 PST"]
[Termination "severomorskij won by resignation"]

1. d4 {[%clk 0:03:02]} 1... d5 {[%clk 0:02:59.4]} 2. c4 {[%clk 0:03:02.2]} 2...
e6 {[%clk 0:03:00.4]} 3. Nc3 {[%clk 0:03:02.8]} 3... Nf6 {[%clk 0:03:00.9]} 4.
cxd5 {[%clk 0:03:02.6]} 4... exd5 {[%clk 0:03:01.1]} 5. Bg5 {[%clk 0:03:03.1]}
5... Be7 {[%clk 0:03:01.3]} 6. e3 {[%clk 0:03:04.1]} 6... Nbd7 {[%clk
0:03:02.4]} 7. Bd3 {[%clk 0:03:05.2]} 7... c6 {[%clk 0:03:03.4]} 8. Nf3 {[%clk
0:03:06.2]} 8... O-O {[%clk 0:03:04.5]} 9. h3 {[%clk 0:03:05.4]} 9... Re8 {[%clk
0:03:04.1]} 10. Qc2 {[%clk 0:03:05.4]} 10... Nf8 {[%clk 0:03:04.7]} 11. O-O
{[%clk 0:03:00.4]} 11... g6 {[%clk 0:03:03.2]} 12. Bh6 {[%clk 0:02:53.1]} 12...
Ne6 {[%clk 0:02:58.2]} 13. Ne5 {[%clk 0:02:53.6]} 13... Bf8 {[%clk 0:02:53.7]}
14. Bxf8 {[%clk 0:02:52]} 14... Rxf8 {[%clk 0:02:50.9]} 15. f4 {[%clk
0:02:52.5]} 15... Nd7 {[%clk 0:02:43.4]} 1-0

[Event "*** Titled Tuesday 3|2 Blitz (Late)"]
[Site "Chess.com"]
[Date "2017.01.03"]
[Round "8"]
[White "Andrejkin"]
[Black "beastfromweast"]
[Result "1-0"]
[WhiteElo "2218"]
[BlackElo "2276"]
[TimeControl "180+2"]
[EndTime "18:32:22 PST"]
[Termination "Andrejkin won by resignation"]

1. d4 {[%clk 0:03:02]} 1... d5 {[%clk 0:03:00.2]} 2. c4 {[%clk 0:03:02.2]} 2...
e6 {[%clk 0:03:00.8]} 3. Nf3 {[%clk 0:03:01.5]} 3... Be7 {[%clk 0:03:02.7]} 4.
g3 {[%clk 0:02:57.9]} 4... Nf6 {[%clk 0:03:03.9]} 5. Bg2 {[%clk 0:02:57.6]} 5...
O-O {[%clk 0:03:04.2]} 6. O-O {[%clk 0:02:56.8]} 6... Nbd7 {[%clk 0:03:05.8]} 7.
Qc2 {[%clk 0:02:54.7]} 7... c6 {[%clk 0:03:06.8]} 8. Nbd2 {[%clk 0:02:52.7]}
8... b6 {[%clk 0:03:07.3]} 9. e4 {[%clk 0:02:49.9]} 9... dxc4 {[%clk 0:03:07.7]}
10. Nxc4 {[%clk 0:02:42.3]} 10... Ba6 {[%clk 0:03:07.9]} 11. Rd1 {[%clk
0:02:40.8]} 11... c5 {[%clk 0:03:08.1]} 12. Ne3 {[%clk 0:02:35.5]} 12... Qe8
{[%clk 0:03:03.3]} 13. d5 {[%clk 0:02:33.9]} 13... exd5 {[%clk 0:03:01]} 14.
exd5 {[%clk 0:02:34.2]} 14... g6 {[%clk 0:02:35.6]} 15. d6 {[%clk 0:02:32.8]}
15... Bd8 {[%clk 0:02:35.7]} 16. Re1 {[%clk 0:02:32.7]} 16... Qe4 {[%clk
0:02:30.2]} 17. Qxe4 {[%clk 0:02:31.4]} 17... Nxe4 {[%clk 0:02:30.7]} 18. Nd2
{[%clk 0:02:31.6]} 18... Nxd2 {[%clk 0:02:28]} 19. Bxd2 {[%clk 0:02:33.5]} 19...
Rb8 {[%clk 0:02:22.7]} 20. Nd5 {[%clk 0:02:31.7]} 20... Nf6 {[%clk 0:02:21.9]}
21. Ne7+ {[%clk 0:02:23.4]} 21... Kg7 {[%clk 0:02:00.9]} 22. Nc6 {[%clk
0:02:17.6]} 22... Ra8 {[%clk 0:02:00.8]} 23. Bc3 {[%clk 0:02:15.8]} 23... Bb7
{[%clk 0:01:57.6]} 24. Rad1 {[%clk 0:02:09.7]} 24... Rc8 {[%clk 0:01:54.1]} 25.
Nxd8 {[%clk 0:02:07.7]} 25... Bxg2 {[%clk 0:01:53.3]} 26. d7 {[%clk 0:02:01.4]}
26... Rcxd8 {[%clk 0:01:49.3]} 27. Kxg2 {[%clk 0:01:59.2]} 27... Kg8 {[%clk
0:01:39.2]} 28. Bxf6 {[%clk 0:01:58.4]} 1-0

[Event "*** Titled Tuesday 3|2 Blitz (Late)"]
[Site "Chess.com"]
[Date "2017.01.03"]
[Round "8"]
[White "Assasin14"]
[Black "nonscitis"]
[Result "0-1"]
[WhiteElo "2230"]
[BlackElo "2345"]
[TimeControl "180+2"]
[EndTime "18:34:09 PST"]
[Termination "nonscitis won by resignation"]

1. d4 {[%clk 0:03:02]} 1... Nf6 {[%clk 0:02:59.8]} 2. Bf4 {[%clk 0:03:00.8]}
2... e6 {[%clk 0:03:00.4]} 3. e3 {[%clk 0:03:01.3]} 3... b6 {[%clk 0:03:00.1]}
4. Nf3 {[%clk 0:02:52.5]} 4... Bb7 {[%clk 0:03:00.4]} 5. c4 {[%clk 0:02:53]}
5... Bb4+ {[%clk 0:02:57.8]} 6. Nc3 {[%clk 0:02:53.4]} 6... O-O {[%clk
0:02:57.2]} 7. Be2 {[%clk 0:02:53.9]} 7... c5 {[%clk 0:02:53.9]} 8. O-O {[%clk
0:02:53.7]} 8... cxd4 {[%clk 0:02:54.7]} 9. Nxd4 {[%clk 0:02:51.8]} 9... d5
{[%clk 0:02:54.2]} 10. a3 {[%clk 0:02:50]} 10... Bxc3 {[%clk 0:02:54.1]} 11.
bxc3 {[%clk 0:02:50.5]} 11... dxc4 {[%clk 0:02:54]} 12. Bxc4 {[%clk 0:02:52.4]}
12... Nd5 {[%clk 0:02:54.6]} 13. Bxd5 {[%clk 0:02:52.5]} 13... Qxd5 {[%clk
0:02:53.1]} 14. Qg4 {[%clk 0:02:43.4]} 14... e5 {[%clk 0:02:26.1]} 15. Bh6
{[%clk 0:02:41.4]} 15... Qxg2+ {[%clk 0:02:25.2]} 16. Qxg2 {[%clk 0:02:40.8]}
16... Bxg2 {[%clk 0:02:25.4]} 17. Kxg2 {[%clk 0:02:41.7]} 17... exd4 {[%clk
0:02:25.9]} 18. Bf4 {[%clk 0:02:41.6]} 18... dxc3 {[%clk 0:02:26]} 19. Rac1
{[%clk 0:02:38.7]} 19... Na6 {[%clk 0:02:18.8]} 20. Rxc3 {[%clk 0:02:39]} 20...
Nc5 {[%clk 0:02:13.2]} 21. Rfc1 {[%clk 0:02:30.8]} 21... Rfd8 {[%clk 0:02:05.4]}
22. R1c2 {[%clk 0:02:29]} 22... f6 {[%clk 0:02:03.9]} 23. Kf3 {[%clk 0:02:23.7]}
23... Rd7 {[%clk 0:02:03]} 24. h4 {[%clk 0:02:17.8]} 24... Kf7 {[%clk
0:02:02.5]} 25. Rc4 {[%clk 0:02:14.2]} 25... Rad8 {[%clk 0:01:51.9]} 26. a4
{[%clk 0:02:07.5]} 26... Nd3 {[%clk 0:01:51.5]} 27. Bg3 {[%clk 0:02:03.7]} 27...
Ne1+ {[%clk 0:01:51.4]} 28. Ke2 {[%clk 0:02:00.6]} 28... Nxc2 {[%clk 0:01:52.4]}
29. Rxc2 {[%clk 0:02:02.5]} 29... Re8 {[%clk 0:01:51.9]} 30. a5 {[%clk 0:01:55]}
30... bxa5 {[%clk 0:01:49.5]} 31. Rc5 {[%clk 0:01:55.2]} 31... a4 {[%clk
0:01:46.1]} 32. Ra5 {[%clk 0:01:55.9]} 32... Re4 {[%clk 0:01:44]} 33. Kf3 {[%clk
0:01:55.7]} 33... Rb4 {[%clk 0:01:44.1]} 34. h5 {[%clk 0:01:56.7]} 34... Rdb7
{[%clk 0:01:43]} 35. Bd6 {[%clk 0:01:57.3]} 35... R4b5 {[%clk 0:01:42.3]} 36.
Rxa4 {[%clk 0:01:56.9]} 36... Rxh5 {[%clk 0:01:42.2]} 37. Bg3 {[%clk 0:01:57.6]}
37... Rhb5 {[%clk 0:01:41.8]} 38. Bd6 {[%clk 0:01:58.1]} 38... g5 {[%clk
0:01:42]} 39. Kg4 {[%clk 0:01:56.6]} 39... Kg6 {[%clk 0:01:40.9]} 40. Kf3 {[%clk
0:01:56.6]} 40... h5 {[%clk 0:01:40.9]} 41. Bg3 {[%clk 0:01:57.3]} 41... a5
{[%clk 0:01:40.5]} 42. Ra1 {[%clk 0:01:56.8]} 42... h4 {[%clk 0:01:41]} 43. Bh2
{[%clk 0:01:57.6]} 43... Rf5+ {[%clk 0:01:40.7]} 44. Kg2 {[%clk 0:01:57]} 44...
Rb2 {[%clk 0:01:39.3]} 45. Bg1 {[%clk 0:01:58.3]} 45... g4 {[%clk 0:01:38.7]}
46. Ra4 {[%clk 0:01:58.4]} 46... g3 {[%clk 0:01:34.8]} 0-1

[Event "*** Titled Tuesday 3|2 Blitz (Late)"]
[Site "Chess.com"]
[Date "2017.01.03"]
[Round "8"]
[White "AndrBaryshpolets"]
[Black "Ilja_Semjonovs"]
[Result "1-0"]
[WhiteElo "2451"]
[BlackElo "2201"]
[TimeControl "180+2"]
[EndTime "18:34:30 PST"]
[Termination "AndrBaryshpolets won by resignation"]

1. d4 {[%clk 0:03:02]} 1... Nf6 {[%clk 0:03:00]} 2. c4 {[%clk 0:03:03.1]} 2...
c5 {[%clk 0:03:01.2]} 3. d5 {[%clk 0:03:03.8]} 3... b5 {[%clk 0:03:02.8]} 4.
cxb5 {[%clk 0:03:05.1]} 4... a6 {[%clk 0:03:04.2]} 5. bxa6 {[%clk 0:03:06.8]}
5... g6 {[%clk 0:03:04.7]} 6. Nc3 {[%clk 0:03:08.5]} 6... Bg7 {[%clk 0:03:05.5]}
7. e4 {[%clk 0:03:09.7]} 7... O-O {[%clk 0:03:05.5]} 8. Be2 {[%clk 0:03:10.9]}
8... Qa5 {[%clk 0:03:05.9]} 9. Bd2 {[%clk 0:03:00]} 9... Bxa6 {[%clk 0:03:04.7]}
10. e5 {[%clk 0:02:52.1]} 10... Ne8 {[%clk 0:03:04.9]} 11. Nf3 {[%clk 0:02:51]}
11... d6 {[%clk 0:03:05.4]} 12. e6 {[%clk 0:02:41.9]} 12... fxe6 {[%clk
0:03:04.8]} 13. Ng5 {[%clk 0:02:42.5]} 13... Bxe2 {[%clk 0:02:36.8]} 14. Qxe2
{[%clk 0:02:34.2]} 14... e5 {[%clk 0:02:38]} 15. h4 {[%clk 0:02:15.8]} 15... h6
{[%clk 0:02:09.7]} 16. Ne6 {[%clk 0:01:51.4]} 16... Rf7 {[%clk 0:02:08.7]} 17.
Qg4 {[%clk 0:01:41.2]} 17... Kh7 {[%clk 0:02:07.1]} 18. h5 {[%clk 0:01:28.5]}
18... g5 {[%clk 0:02:02.8]} 19. Ne4 {[%clk 0:01:05.3]} 19... Qb5 {[%clk
0:01:09.5]} 20. N6xg5+ {[%clk 0:00:56.1]} 20... hxg5 {[%clk 0:01:08.6]} 21.
Nxg5+ {[%clk 0:00:57.2]} 21... Kg8 {[%clk 0:01:08.5]} 22. Qe6 {[%clk 0:00:53.7]}
22... Qxb2 {[%clk 0:00:34.3]} 23. Qxf7+ {[%clk 0:00:54.2]} 23... Kh8 {[%clk
0:00:35.4]} 24. Qxe8+ {[%clk 0:00:55.4]} 1-0

[Event "*** Titled Tuesday 3|2 Blitz (Late)"]
[Site "Chess.com"]
[Date "2017.01.03"]
[Round "8"]
[White "chito89"]
[Black "Alexander_Moskalenko"]
[Result "0-1"]
[WhiteElo "2521"]
[BlackElo "2699"]
[TimeControl "180+2"]
[EndTime "18:34:42 PST"]
[Termination "Alexander_Moskalenko won on time"]

1. e4 {[%clk 0:03:02]} 1... c6 {[%clk 0:03:00.1]} 2. Nc3 {[%clk 0:02:57.1]} 2...
d5 {[%clk 0:03:01.2]} 3. Nf3 {[%clk 0:02:55.4]} 3... dxe4 {[%clk 0:03:00.5]} 4.
Nxe4 {[%clk 0:02:48.9]} 4... Nf6 {[%clk 0:03:02.4]} 5. Nxf6+ {[%clk 0:02:41.4]}
5... exf6 {[%clk 0:03:04.3]} 6. d4 {[%clk 0:02:39.3]} 6... Bd6 {[%clk
0:03:05.5]} 7. c3 {[%clk 0:02:40]} 7... O-O {[%clk 0:03:06.3]} 8. Be2 {[%clk
0:02:34]} 8... Bf5 {[%clk 0:03:03.5]} 9. O-O {[%clk 0:02:30.6]} 9... Qc7 {[%clk
0:03:04.7]} 10. h3 {[%clk 0:02:31.4]} 10... Re8 {[%clk 0:03:01.6]} 11. Bd3
{[%clk 0:02:28.1]} 11... Bxd3 {[%clk 0:03:02.2]} 12. Qxd3 {[%clk 0:02:28.2]}
12... Nd7 {[%clk 0:03:04.1]} 13. Bd2 {[%clk 0:02:26.1]} 13... g6 {[%clk
0:02:54.7]} 14. Rfe1 {[%clk 0:02:16.4]} 14... f5 {[%clk 0:02:56.1]} 15. Bh6
{[%clk 0:02:09.3]} 15... Nf6 {[%clk 0:02:57.1]} 16. a4 {[%clk 0:02:03.5]} 16...
Qd7 {[%clk 0:02:50.8]} 17. Nd2 {[%clk 0:01:59.5]} 17... Bc7 {[%clk 0:02:46.9]}
18. Bg5 {[%clk 0:01:49.9]} 18... Qd6 {[%clk 0:02:47.5]} 19. g3 {[%clk
0:01:45.8]} 19... Kg7 {[%clk 0:02:46.7]} 20. Nc4 {[%clk 0:01:36.6]} 20... Qd5
{[%clk 0:02:37.7]} 21. Bxf6+ {[%clk 0:01:27.4]} 21... Kxf6 {[%clk 0:02:38.5]}
22. Rad1 {[%clk 0:01:10.3]} 22... a5 {[%clk 0:02:35.5]} 23. Ne3 {[%clk
0:01:06.4]} 23... Qf3 {[%clk 0:02:30.7]} 24. d5 {[%clk 0:01:02.1]} 24... Bb6
{[%clk 0:02:05.3]} 25. Qe2 {[%clk 0:00:21.9]} 25... Qxe2 {[%clk 0:02:05.4]} 26.
Rxe2 {[%clk 0:00:16.3]} 26... Rad8 {[%clk 0:02:06.4]} 27. Red2 {[%clk
0:00:12.4]} 27... Bxe3 {[%clk 0:02:07.1]} 28. fxe3 {[%clk 0:00:11.9]} 28... Rxd5
{[%clk 0:02:04.2]} 29. Rxd5 {[%clk 0:00:06.5]} 29... cxd5 {[%clk 0:02:06.1]} 30.
Rxd5 {[%clk 0:00:07.5]} 30... Rxe3 {[%clk 0:02:05.2]} 31. Rxa5 {[%clk
0:00:07.2]} 31... Rxg3+ {[%clk 0:02:06.1]} 32. Kh2 {[%clk 0:00:01.1]} 32... Rd3
{[%clk 0:02:07.9]} 0-1

[Event "*** Titled Tuesday 3|2 Blitz (Late)"]
[Site "Chess.com"]
[Date "2017.01.03"]
[Round "8"]
[White "Houdinovic"]
[Black "Fh2411"]
[Result "0-1"]
[WhiteElo "2346"]
[BlackElo "2396"]
[TimeControl "180+2"]
[EndTime "18:34:57 PST"]
[Termination "Fh2411 won by resignation"]

1. e4 {[%clk 0:03:02]} 1... e5 {[%clk 0:03:00.4]} 2. Nf3 {[%clk 0:03:01.5]} 2...
Nc6 {[%clk 0:03:00.7]} 3. Bc4 {[%clk 0:03:03]} 3... Bc5 {[%clk 0:02:58.5]} 4. c3
{[%clk 0:03:04]} 4... Nf6 {[%clk 0:02:59.1]} 5. d3 {[%clk 0:03:05.4]} 5... O-O
{[%clk 0:02:58.5]} 6. O-O {[%clk 0:02:53.2]} 6... d5 {[%clk 0:02:56.4]} 7. exd5
{[%clk 0:02:54.3]} 7... Nxd5 {[%clk 0:02:58.3]} 8. b4 {[%clk 0:02:39.7]} 8...
Bb6 {[%clk 0:02:56.1]} 9. b5 {[%clk 0:02:39.7]} 9... Na5 {[%clk 0:02:42.6]} 10.
Bxd5 {[%clk 0:02:40.2]} 10... Qxd5 {[%clk 0:02:41.6]} 11. c4 {[%clk 0:02:41.5]}
11... Qd6 {[%clk 0:02:40.9]} 12. Ba3 {[%clk 0:01:40.9]} 12... Bc5 {[%clk
0:02:38.3]} 13. Bxc5 {[%clk 0:01:41.9]} 13... Qxc5 {[%clk 0:02:40.2]} 14. Qe1
{[%clk 0:01:43.5]} 14... b6 {[%clk 0:02:29.4]} 15. Qxe5 {[%clk 0:01:43.9]} 15...
Nb7 {[%clk 0:02:25.2]} 16. Nc3 {[%clk 0:01:40.8]} 16... Bg4 {[%clk 0:02:22.7]}
17. Ne4 {[%clk 0:01:37.4]} 17... Qa3 {[%clk 0:02:13.6]} 18. Qxc7 {[%clk
0:01:28.9]} 18... Bxf3 {[%clk 0:02:10]} 19. gxf3 {[%clk 0:01:16.1]} 19... Rab8
{[%clk 0:02:09]} 20. Rfd1 {[%clk 0:01:13.9]} 20... Rfc8 {[%clk 0:02:00.5]} 21.
Qg3 {[%clk 0:01:07.6]} 21... Nc5 {[%clk 0:01:55.5]} 22. Kh1 {[%clk 0:00:59]}
22... Rd8 {[%clk 0:01:43.9]} 23. d4 {[%clk 0:00:38.4]} 23... Nd3 {[%clk
0:01:37.9]} 24. Nf6+ {[%clk 0:00:23.2]} 24... Kh8 {[%clk 0:01:34.6]} 25. Nd5
{[%clk 0:00:09.8]} 25... Qb2 {[%clk 0:01:29.1]} 26. Rab1 {[%clk 0:00:10.4]}
26... Qxd4 {[%clk 0:01:10.4]} 27. f4 {[%clk 0:00:11]} 27... Nxf2+ {[%clk
0:01:01]} 28. Kg2 {[%clk 0:00:11.7]} 28... Nxd1 {[%clk 0:01:01.3]} 0-1